[Event "Szansa Chess Open 2022"]
[Site "Warsaw"]
[Date "2022.09.17"]
[Round "4.4"]
[White "Nasuta, Grzegorz"]
[Black "Jarzebowski, Kacper"]
[Result "1-0"]
[ECO "B12"]
[WhiteElo "2531"]
[BlackElo "2106"]
[Annotator "ChessBase"]
[PlyCount "87"]
[EventDate "2022.09.17"]
[EventCountry "POL"]
[SourceTitle "playchess.com"]
[Source "ChessBase"]
[SourceQuality "1"]
[TimeControl "900+10"]

1. e4 {[%emt 0:00:01]} c6 {[%emt 0:00:06]} 2. d4 {[%emt 0:00:14]} d5 {[%emt 0:00:02]} 3. e5 {[%emt 0:00:18]} c5 {[%emt 0:00:03]} 4. dxc5 {[%emt 0:00:05]} e6 {[%emt 0:00:06]} 5. a3 {[%emt 0:00:02]} Nc6 {[%emt 0:00:16]} 6. Nf3 {[%emt 0:00:08]} a5 {[%emt 0:00:43]} 7. Be3 {[%emt 0:00:22]} Qc7 {[%emt 0:00:02]} 8. Nc3 {[%emt 0:00:21]} Nxe5 {[%emt 0:01:23]} 9. Nb5 {[%emt 0:01:29]} Qb8 {[%emt 0:02:41]} 10. Nxe5 {[%emt 0:07:32]} Qxe5 {[%emt 0:00:04]} 11. Be2 {[%emt 0:00:01]} Bd7 {[%emt 0:00:29]} 12. Qd2 {[%emt 0:00:02]} Bxc5 {[%emt 0:03:41]} 13. Bf4 {[%emt 0:02:24]} Qxb2 {[%emt 0:00:08]} 14. O-O {[%emt 0:01:07]} Bxb5 {[%emt 0:00:58]} 15. Rab1 {[%emt 0:00:01]} Qd4 {[%emt 0:03:29]} 16. Bxb5+ {[%emt 0:00:03]} Ke7 17. Bd3 {[%emt 0:00:03]} b6 {[%emt 0:01:57]} 18. Be3 {[%emt 0:00:02]} Qe5 {[%emt 0:00:31]} 19. Bxc5+ {[%emt 0:00:53]} bxc5 {[%emt 0:00:01]} 20. Rb7+ {[%emt 0:00:01]} Kf8 {[%emt 0:00:14]} 21. Rfb1 {[%emt 0:01:10]} Nf6 {[%emt 0:00:27]} 22. R1b5 {[%emt 0:00:29]} Qa1+ {[%emt 0:00:47]} 23. Bf1 {[%emt 0:00:07]} Qd4 {[%emt 0:00:01]} 24. Qe1 {[%emt 0:01:31]} Ne4 25. Rd7 {[%emt 0:00:03]} Kg8 {[%emt 0:00:34]} 26. Rxa5 {[%emt 0:00:08]} Rf8 {[%emt 0:00:12]} 27. Raa7 {[%emt 0:00:24]} c4 {[%emt 0:00:07]} 28. Rac7 {[%emt 0:00:22]} c3 {[%emt 0:00:09]} 29. Re7 {[%emt 0:00:21]} h5 {[%emt 0:00:08]} 30. Bd3 {[%emt 0:00:01]} Nc5 31. Bg6 {[%emt 0:00:20]} Rh6 {[%emt 0:00:31]} 32. Bxf7+ {[%emt 0:00:05]} Kh8 {[%emt 0:00:01]} 33. Re8 {[%emt 0:00:17]} Rxe8 {[%emt 0:00:13]} 34. Bxe8 {[%emt 0:00:01]} Rf6 {[%emt 0:00:07]} 35. Bxh5 {[%emt 0:00:03]} Ne4 {[%emt 0:00:00]} 36. Qe3 {[%emt 0:00:18]} Qe5 {[%emt 0:00:38]} 37. Rc8+ {[%emt 0:00:01]} Kh7 38. Bf3 Rh6 {[%emt 0:00:19]} 39. h3 {[%emt 0:00:15]} Rh4 {[%emt 0:00:12]} 40. a4 {[%emt 0:00:09]} d4 {[%emt 0:00:02]} 41. Qd3 {[%emt 0:00:01]} g6 {[%emt 0:00:11]} 42. Qb5 {[%emt 0:00:24]} Qf6 {[%emt 0:00:23]} 43. Bxe4 {[%emt 0:00:06]} Rxe4 {[%emt 0:00:02]} 44. Qb7+ {[%emt 0:00:01]} 1-0

[Event "Szansa Chess Open 2022"]
[Site "Warsaw"]
[Date "2022.09.17"]
[Round "4.5"]
[White "Kozak, Antoni"]
[Black "Kutowski, Marcel"]
[Result "1-0"]
[ECO "A14"]
[WhiteElo "2434"]
[BlackElo "2046"]
[Annotator "ChessBase"]
[PlyCount "63"]
[EventDate "2022.09.17"]
[EventCountry "POL"]
[SourceTitle "playchess.com"]
[Source "ChessBase"]
[SourceQuality "1"]
[TimeControl "900+10"]

1. Nf3 {[%emt 0:00:01]} Nf6 {[%emt 0:00:02]} 2. c4 {[%emt 0:00:01]} e6 {[%emt 0:00:04]} 3. g3 {[%emt 0:00:08]} d5 {[%emt 0:00:02]} 4. Bg2 {[%emt 0:00:01]} Be7 {[%emt 0:00:01]} 5. O-O {[%emt 0:00:02]} O-O {[%emt 0:00:03]} 6. b3 {[%emt 0:00:01]} b6 {[%emt 0:00:04]} 7. Bb2 {[%emt 0:00:06]} Bb7 {[%emt 0:00:05]} 8. e3 {[%emt 0:00:03]} dxc4 {[%emt 0:00:07]} 9. bxc4 {[%emt 0:00:01]} c5 {[%emt 0:00:01]} 10. Nc3 {[%emt 0:00:05]} Nc6 {[%emt 0:00:02]} 11. Qe2 {[%emt 0:00:01]} Nb4 {[%emt 0:01:49]} 12. Ne1 {[%emt 0:00:18]} Bxg2 {[%emt 0:00:05]} 13. Kxg2 {[%emt 0:00:02]} Qc7 {[%emt 0:00:19]} 14. f4 {[%emt 0:00:04]} Rad8 {[%emt 0:00:47]} 15. a3 {[%emt 0:00:12]} Nc6 {[%emt 0:00:18]} 16. g4 {[%emt 0:00:09]} Qb7 {[%emt 0:02:20]} 17. Kg1 {[%emt 0:00:01]} a6 {[%emt 0:00:58]} 18. Rb1 {[%emt 0:01:47]} Qd7 {[%emt 0:00:45]} 19. d3 {[%emt 0:00:15]} h6 {[%emt 0:02:46]} 20. h4 {[%emt 0:00:03]} Ne8 21. g5 {[%emt 0:00:12]} Kh7 {[%emt 0:02:12]} 22. Rf2 {[%emt 0:00:43]} Nd6 {[%emt 0:00:05]} 23. gxh6 {[%emt 0:02:14]} gxh6 {[%emt 0:00:11]} 24. Qh5 {[%emt 0:00:02]} Rg8+ {[%emt 0:00:15]} 25. Rg2 {[%emt 0:00:32]} Rxg2+ {[%emt 0:00:12]} 26. Nxg2 {[%emt 0:00:02]} Rg8 {[%emt 0:00:10]} 27. Ne4 {[%emt 0:00:05]} f5 {[%emt 0:00:47]} 28. Ng5+ {[%emt 0:00:18]} Bxg5 29. hxg5 {[%emt 0:00:01]} Nf7 {[%emt 0:01:06]} 30. Bf6 {[%emt 0:00:24]} Qe8 {[%emt 0:02:15]} 31. Rxb6 {[%emt 0:00:06]} e5 {[%emt 0:00:18]} 32. Rb7 {[%emt 0:00:05]} 1-0

[Event "Szansa Chess Open 2022"]
[Site "Warsaw"]
[Date "2022.09.17"]
[Round "4.6"]
[White "Kulesza, Andrzej"]
[Black "Nguyen, Piotr"]
[Result "1-0"]
[ECO "B06"]
[WhiteElo "2014"]
[BlackElo "2421"]
[Annotator "ChessBase"]
[PlyCount "121"]
[EventDate "2022.09.17"]
[EventCountry "POL"]
[SourceTitle "playchess.com"]
[Source "ChessBase"]
[SourceQuality "1"]
[TimeControl "900+10"]

1. e4 {[%emt 0:00:04]} g6 {[%emt 0:00:01]} 2. Nf3 {[%emt 0:00:09]} Bg7 {[%emt 0:00:11]} 3. Bc4 {[%emt 0:00:06]} e6 {[%emt 0:00:04]} 4. O-O {[%emt 0:00:24]} d5 {[%emt 0:00:08]} 5. exd5 {[%emt 0:00:03]} exd5 {[%emt 0:00:02]} 6. Re1+ {[%emt 0:00:02]} Ne7 {[%emt 0:00:03]} 7. Be2 {[%emt 0:00:14]} O-O {[%emt 0:00:24]} 8. d4 {[%emt 0:00:02]} c5 {[%emt 0:00:36]} 9. dxc5 {[%emt 0:00:10]} Nd7 {[%emt 0:00:15]} 10. c3 {[%emt 0:00:03]} Nxc5 {[%emt 0:00:03]} 11. Be3 {[%emt 0:00:08]} Ne6 {[%emt 0:00:41]} 12. Nd4 {[%emt 0:00:35]} Nc6 {[%emt 0:00:04]} 13. Nxe6 {[%emt 0:00:42]} Bxe6 {[%emt 0:00:43]} 14. Qc1 {[%emt 0:00:30]} Re8 {[%emt 0:00:20]} 15. Bf3 {[%emt 0:00:41]} Rc8 {[%emt 0:00:31]} 16. Bg5 {[%emt 0:00:08]} Qb6 {[%emt 0:00:11]} 17. Nd2 {[%emt 0:00:08]} d4 {[%emt 0:00:35]} 18. Ne4 {[%emt 0:00:10]} dxc3 {[%emt 0:01:26]} 19. Nf6+ {[%emt 0:00:30]} Kh8 {[%emt 0:00:12]} 20. bxc3 {[%emt 0:00:15]} Red8 {[%emt 0:00:59]} 21. Qf4 {[%emt 0:00:14]} h5 {[%emt 0:04:15]} 22. Qh4 {[%emt 0:00:13]} Ne7 {[%emt 0:01:33]} 23. Re5 {[%emt 0:01:29]} Rc4 {[%emt 0:00:59]} 24. Re4 {[%emt 0:01:20]} Nf5 {[%emt 0:00:15]} 25. Qf4 {[%emt 0:00:10]} Rxc3 {[%emt 0:00:41]} 26. Rae1 {[%emt 0:00:35]} Rc2 {[%emt 0:00:08]} 27. Bd1 {[%emt 0:00:14]} Rxa2 {[%emt 0:00:31]} 28. g4 {[%emt 0:00:01]} Ra1 {[%emt 0:03:31]} 29. gxf5 {[%emt 0:00:07]} Rdxd1 {[%emt 0:00:01]} 30. Kg2 {[%emt 0:01:29]} Qd6 {[%emt 0:00:31]} 31. Qxd6 {[%emt 0:00:13]} Rxd6 {[%emt 0:00:02]} 32. fxe6 {[%emt 0:00:32]} Rxe1 {[%emt 0:00:13]} 33. Rxe1 {[%emt 0:00:01]} Rxe6 {[%emt 0:00:04]} 34. Rxe6 {[%emt 0:00:21]} fxe6 {[%emt 0:00:01]} 35. Ne4 {[%emt 0:00:08]} Bd4 {[%emt 0:00:21]} 36. Kf3 {[%emt 0:00:24]} Kg7 {[%emt 0:00:05]} 37. Ke2 {[%emt 0:00:01]} a5 {[%emt 0:00:13]} 38. Bd2 {[%emt 0:00:05]} a4 {[%emt 0:00:11]} 39. Bc1 {[%emt 0:00:01]} b5 {[%emt 0:00:06]} 40. Ba3 {[%emt 0:00:01]} Be5 {[%emt 0:00:10]} 41. h3 {[%emt 0:00:05]} Kh6 {[%emt 0:00:13]} 42. Kd3 {[%emt 0:00:38]} g5 {[%emt 0:00:11]} 43. Bc1 {[%emt 0:00:01]} Kg6 {[%emt 0:00:10]} 44. Nxg5 {[%emt 0:00:14]} b4 {[%emt 0:00:11]} 45. Nxe6 {[%emt 0:00:20]} a3 {[%emt 0:00:13]} 46. Nd4 {[%emt 0:00:06]} Kf6 {[%emt 0:00:10]} 47. f4 {[%emt 0:00:07]} Bd6 {[%emt 0:00:19]} 48. Ke4 {[%emt 0:00:01]} h4 {[%emt 0:00:06]} 49. Nb3 {[%emt 0:00:06]} Ke6 {[%emt 0:00:11]} 50. Be3 {[%emt 0:00:01]} Be7 {[%emt 0:00:12]} 51. Bc5 {[%emt 0:00:02]} Bf6 {[%emt 0:00:06]} 52. f5+ {[%emt 0:00:11]} Kd7 {[%emt 0:00:01]} 53. Bd4 {[%emt 0:00:07]} Ke7 {[%emt 0:00:15]} 54. Bxf6+ {[%emt 0:00:03]} Kxf6 {[%emt 0:00:01]} 55. Kf4 {[%emt 0:00:01]} a2 {[%emt 0:00:07]} 56. Ke4 {[%emt 0:00:05]} Ke7 {[%emt 0:00:17]} 57. Ke5 {[%emt 0:00:01]} Kf7 {[%emt 0:00:06]} 58. f6 {[%emt 0:00:01]} Kf8 {[%emt 0:00:05]} 59. Ke6 {[%emt 0:00:02]} Ke8 60. Na1 {[%emt 0:00:06]} Kf8 {[%emt 0:00:36]} 61. f7 {[%emt 0:00:01]} 1-0

[Event "Szansa Chess Open 2022"]
[Site "Warsaw"]
[Date "2022.09.17"]
[Round "4.7"]
[White "Kowalski, Igor"]
[Black "Golecki, Jan"]
[Result "0-1"]
[ECO "A46"]
[WhiteElo "2344"]
[BlackElo "2193"]
[Annotator "ChessBase"]
[PlyCount "60"]
[EventDate "2022.09.17"]
[EventCountry "POL"]
[SourceTitle "playchess.com"]
[Source "ChessBase"]
[SourceQuality "1"]
[TimeControl "900+10"]

1. d4 {[%emt 0:00:01]} Nf6 {[%emt 0:00:01]} 2. Nf3 {[%emt 0:00:03]} e6 3. g3 {[%emt 0:00:05]} d5 {[%emt 0:00:27]} 4. Bg2 {[%emt 0:00:01]} c6 {[%emt 0:00:06]} 5. O-O {[%emt 0:00:03]} Be7 {[%emt 0:00:04]} 6. c4 {[%emt 0:00:02]} O-O {[%emt 0:00:03]} 7. Qd3 {[%emt 0:00:06]} Ne4 {[%emt 0:00:23]} 8. Nbd2 {[%emt 0:00:09]} f5 {[%emt 0:00:02]} 9. Ne5 {[%emt 0:00:06]} Nd7 {[%emt 0:00:03]} 10. Ndf3 {[%emt 0:00:03]} g5 {[%emt 0:00:49]} 11. Nxd7 {[%emt 0:00:07]} Bxd7 {[%emt 0:00:02]} 12. Ne5 {[%emt 0:00:01]} Bf6 {[%emt 0:00:14]} 13. f3 {[%emt 0:00:49]} Nd6 {[%emt 0:00:06]} 14. c5 {[%emt 0:00:09]} Nf7 {[%emt 0:00:02]} 15. f4 {[%emt 0:01:11]} Be8 {[%emt 0:00:45]} 16. g4 {[%emt 0:03:45]} Nh6 {[%emt 0:00:21]} 17. Qg3 {[%emt 0:00:19]} Kh8 {[%emt 0:01:10]} 18. fxg5 {[%emt 0:00:08]} Bxg5 {[%emt 0:00:01]} 19. Bxg5 {[%emt 0:00:12]} Qxg5 {[%emt 0:00:02]} 20. h4 {[%emt 0:00:02]} Qg7 {[%emt 0:01:24]} 21. g5 {[%emt 0:00:41]} Bh5 {[%emt 0:00:45]} 22. Bf3 {[%emt 0:01:43]} f4 {[%emt 0:01:45]} 23. Qh2 {[%emt 0:00:07]} Be8 {[%emt 0:02:17]} 24. Bg2 {[%emt 0:00:21]} Nf5 {[%emt 0:01:07]} 25. Rxf4 {[%emt 0:00:45]} Bh5 {[%emt 0:00:01]} 26. Bh3 {[%emt 0:02:57]} h6 {[%emt 0:01:59]} 27. Bxf5 {[%emt 0:00:25]} hxg5 {[%emt 0:00:01]} 28. Ng6+ {[%emt 0:03:23]} Bxg6 {[%emt 0:00:12]} 29. hxg5+ {[%emt 0:00:01]} Bh7 {[%emt 0:00:02]} 30. Bxh7 {[%emt 0:00:05]} Qxg5+ {[%emt 0:00:19]} 0-1

[Event "Szansa Chess Open 2022"]
[Site "Warsaw"]
[Date "2022.09.17"]
[Round "4.8"]
[White "Jarmula, Lukasz"]
[Black "Mulawa, Cyprian"]
[Result "1-0"]
[ECO "D10"]
[WhiteElo "2457"]
[BlackElo "2149"]
[Annotator "ChessBase"]
[PlyCount "109"]
[EventDate "2022.09.17"]
[EventCountry "POL"]
[SourceTitle "playchess.com"]
[Source "ChessBase"]
[SourceQuality "1"]
[TimeControl "900+10"]

1. d4 {[%emt 0:00:02]} d5 {[%emt 0:00:02]} 2. c4 {[%emt 0:00:02]} c6 {[%emt 0:00:01]} 3. cxd5 {[%emt 0:00:02]} cxd5 {[%emt 0:00:02]} 4. Nc3 {[%emt 0:00:02]} Nf6 {[%emt 0:00:01]} 5. Bf4 {[%emt 0:00:04]} Nc6 {[%emt 0:00:02]} 6. Nf3 {[%emt 0:00:03]} a6 {[%emt 0:00:15]} 7. Rc1 {[%emt 0:00:07]} Bf5 {[%emt 0:00:38]} 8. e3 {[%emt 0:00:16]} e6 {[%emt 0:00:01]} 9. Be2 {[%emt 0:00:11]} Bd6 {[%emt 0:00:08]} 10. Ne5 {[%emt 0:00:22]} Bxe5 {[%emt 0:00:25]} 11. Bxe5 {[%emt 0:00:02]} Nxe5 {[%emt 0:00:39]} 12. dxe5 {[%emt 0:00:02]} Nd7 {[%emt 0:00:13]} 13. Qd4 {[%emt 0:00:03]} Qb6 14. O-O {[%emt 0:00:53]} Qxd4 {[%emt 0:00:17]} 15. exd4 {[%emt 0:00:03]} Ke7 {[%emt 0:01:05]} 16. g4 {[%emt 0:00:13]} Bg6 {[%emt 0:00:04]} 17. f4 f5 {[%emt 0:01:09]} 18. exf6+ {[%emt 0:00:26]} Nxf6 {[%emt 0:00:44]} 19. g5 {[%emt 0:00:26]} Nd7 {[%emt 0:00:30]} 20. Bg4 {[%emt 0:01:13]} Kd6 {[%emt 0:00:42]} 21. f5 {[%emt 0:00:24]} exf5 {[%emt 0:00:27]} 22. Bxf5 {[%emt 0:00:03]} Nb6 {[%emt 0:01:46]} 23. Bxg6 {[%emt 0:00:09]} hxg6 {[%emt 0:00:03]} 24. Rf7 {[%emt 0:00:52]} Rh5 {[%emt 0:00:07]} 25. Rxg7 {[%emt 0:00:01]} Rxg5+ {[%emt 0:00:10]} 26. Kh1 Nd7 {[%emt 0:01:13]} 27. Rg1 {[%emt 0:00:47]} Rxg1+ {[%emt 0:01:46]} 28. Kxg1 {[%emt 0:00:02]} Rc8 {[%emt 0:00:25]} 29. Rxg6+ {[%emt 0:00:29]} Ke7 {[%emt 0:00:02]} 30. Nxd5+ {[%emt 0:01:19]} Kf7 {[%emt 0:00:03]} 31. Rd6 {[%emt 0:00:12]} Rc1+ {[%emt 0:00:29]} 32. Kg2 {[%emt 0:00:04]} Rc2+ {[%emt 0:00:11]} 33. Kg3 {[%emt 0:00:04]} Ke8 {[%emt 0:00:05]} 34. Re6+ {[%emt 0:00:58]} Kf8 {[%emt 0:00:30]} 35. Rd6 {[%emt 0:02:28]} Ke8 {[%emt 0:00:06]} 36. Nb6 {[%emt 0:00:19]} Nf8 {[%emt 0:00:10]} 37. Na4 {[%emt 0:00:10]} b5 {[%emt 0:02:39]} 38. Nc5 {[%emt 0:01:24]} a5 {[%emt 0:00:15]} 39. Ra6 {[%emt 0:00:33]} a4 {[%emt 0:00:25]} 40. b3 {[%emt 0:00:09]} Rxa2 {[%emt 0:00:08]} 41. bxa4 {[%emt 0:00:03]} bxa4 {[%emt 0:00:15]} 42. Rxa4 {[%emt 0:00:10]} Rc2 {[%emt 0:00:31]} 43. h4 {[%emt 0:00:24]} Kf7 {[%emt 0:00:13]} 44. h5 {[%emt 0:01:37]} Kg7 {[%emt 0:00:24]} 45. Ra6 {[%emt 0:00:11]} Nh7 {[%emt 0:00:22]} 46. Ne4 {[%emt 0:00:57]} Re2 {[%emt 0:00:25]} 47. Kf3 {[%emt 0:01:19]} Rh2 {[%emt 0:00:10]} 48. Rg6+ {[%emt 0:00:03]} Kf8 {[%emt 0:00:35]} 49. h6 {[%emt 0:00:24]} Rh3+ {[%emt 0:00:18]} 50. Kf4 {[%emt 0:00:07]} Rh1 {[%emt 0:00:08]} 51. d5 {[%emt 0:00:17]} Rf1+ {[%emt 0:00:16]} 52. Ke5 {[%emt 0:00:05]} Rf7 {[%emt 0:00:09]} 53. d6 {[%emt 0:00:18]} Ke8 {[%emt 0:00:10]} 54. Rg7 {[%emt 0:00:29]} Nf8 {[%emt 0:00:11]} 55. Nf6+ {[%emt 0:00:05]} 1-0

[Event "Szansa Chess Open 2022"]
[Site "Warsaw"]
[Date "2022.09.17"]
[Round "4.9"]
[White "Siekanska, Maria"]
[Black "Psyk, Radoslaw"]
[Result "0-1"]
[ECO "A52"]
[WhiteElo "2029"]
[BlackElo "2404"]
[Annotator "ChessBase"]
[PlyCount "112"]
[EventDate "2022.09.17"]
[EventCountry "POL"]
[SourceTitle "playchess.com"]
[Source "ChessBase"]
[SourceQuality "1"]
[TimeControl "900+10"]

1. d4 {[%emt 0:00:01]} Nf6 {[%emt 0:00:02]} 2. c4 {[%emt 0:00:01]} e5 {[%emt 0:00:03]} 3. dxe5 {[%emt 0:00:02]} Ng4 {[%emt 0:00:02]} 4. Bf4 {[%emt 0:00:02]} Nc6 {[%emt 0:00:05]} 5. Nf3 {[%emt 0:00:03]} Bb4+ {[%emt 0:00:02]} 6. Nbd2 {[%emt 0:00:03]} Qe7 {[%emt 0:00:02]} 7. e3 {[%emt 0:00:11]} Ngxe5 {[%emt 0:00:05]} 8. Nxe5 {[%emt 0:00:05]} Nxe5 {[%emt 0:00:03]} 9. Be2 {[%emt 0:00:11]} d6 {[%emt 0:00:02]} 10. O-O {[%emt 0:00:09]} a5 {[%emt 0:00:02]} 11. Nb3 {[%emt 0:00:55]} a4 {[%emt 0:00:02]} 12. a3 {[%emt 0:00:26]} Bc3 13. bxc3 {[%emt 0:00:12]} axb3 {[%emt 0:00:04]} 14. Qxb3 {[%emt 0:00:45]} Nd7 {[%emt 0:00:04]} 15. Bf3 {[%emt 0:01:54]} Nc5 {[%emt 0:00:08]} 16. Qb5+ {[%emt 0:00:19]} Bd7 {[%emt 0:00:10]} 17. Qb1 {[%emt 0:01:07]} g5 {[%emt 0:01:44]} 18. Bg3 {[%emt 0:00:21]} h5 {[%emt 0:00:03]} 19. h3 {[%emt 0:01:20]} g4 {[%emt 0:01:10]} 20. hxg4 {[%emt 0:00:42]} hxg4 {[%emt 0:00:02]} 21. Be2 {[%emt 0:00:03]} Qg5 {[%emt 0:00:17]} 22. Re1 {[%emt 0:01:08]} Bc6 {[%emt 0:04:31]} 23. Qd1 {[%emt 0:00:33]} Qh6 {[%emt 0:04:44]} 24. f3 {[%emt 0:00:04]} gxf3 {[%emt 0:00:26]} 25. Bxf3 {[%emt 0:00:43]} Bxf3 {[%emt 0:01:44]} 26. gxf3 {[%emt 0:00:40]} O-O-O {[%emt 0:01:38]} 27. Kf2 {[%emt 0:00:44]} Rdg8 {[%emt 0:00:03]} 28. Rg1 {[%emt 0:00:08]} Qg6 29. Rg2 {[%emt 0:01:57]} Rh3 {[%emt 0:01:31]} 30. Qg1 {[%emt 0:00:40]} Qc2+ {[%emt 0:00:23]} 31. Kf1 {[%emt 0:00:04]} Qd3+ {[%emt 0:00:03]} 32. Kf2 {[%emt 0:00:06]} Qd2+ {[%emt 0:00:23]} 33. Kf1 {[%emt 0:00:03]} Qxc3 {[%emt 0:00:04]} 34. Be5 {[%emt 0:01:06]} Qxc4+ {[%emt 0:00:40]} 35. Ke1 {[%emt 0:00:03]} Re8 {[%emt 0:00:26]} 36. Rg8 {[%emt 0:00:14]} Rxg8 {[%emt 0:00:06]} 37. Qxg8+ {[%emt 0:00:02]} Kd7 38. Qg2 {[%emt 0:01:08]} Rh5 {[%emt 0:00:20]} 39. Bd4 {[%emt 0:00:04]} Nd3+ {[%emt 0:00:10]} 40. Kd2 Ne5 {[%emt 0:00:12]} 41. Bxe5 {[%emt 0:00:24]} Rxe5 {[%emt 0:00:02]} 42. Qg4+ {[%emt 0:00:09]} Qxg4 {[%emt 0:00:01]} 43. fxg4 {[%emt 0:00:01]} Rg5 {[%emt 0:00:06]} 44. Rg1 f5 {[%emt 0:00:09]} 45. Rb1 {[%emt 0:00:40]} fxg4 {[%emt 0:00:01]} 46. Rxb7 {[%emt 0:00:04]} g3 {[%emt 0:00:02]} 47. Rb1 {[%emt 0:00:03]} c5 {[%emt 0:00:10]} 48. e4 {[%emt 0:00:09]} g2 {[%emt 0:00:22]} 49. Rg1 {[%emt 0:00:03]} Kc6 {[%emt 0:00:27]} 50. a4 {[%emt 0:00:41]} Kb6 {[%emt 0:00:10]} 51. Ke3 {[%emt 0:00:11]} Ka5 {[%emt 0:00:06]} 52. Kf4 {[%emt 0:00:42]} Rg8 {[%emt 0:00:12]} 53. e5 {[%emt 0:00:00]} dxe5+ {[%emt 0:00:10]} 54. Kxe5 {[%emt 0:00:04]} Kb4 {[%emt 0:00:00]} 55. Ke4 {[%emt 0:00:31]} c4 {[%emt 0:00:05]} 56. Ke3 {[%emt 0:00:04]} Kc3 {[%emt 0:00:05]} 0-1

[Event "Szansa Chess Open 2022"]
[Site "Warsaw"]
[Date "2022.09.17"]
[Round "4.10"]
[White "Krupa, Bartlomiej"]
[Black "Lewtak, Damian"]
[Result "0-1"]
[ECO "B06"]
[WhiteElo "1868"]
[BlackElo "2386"]
[Annotator "ChessBase"]
[PlyCount "72"]
[EventDate "2022.09.17"]
[EventCountry "POL"]
[SourceTitle "playchess.com"]
[Source "ChessBase"]
[SourceQuality "1"]
[TimeControl "900+10"]

1. e4 {[%emt 0:00:02]} g6 {[%emt 0:00:04]} 2. d4 {[%emt 0:00:05]} Bg7 {[%emt 0:00:02]} 3. c4 {[%emt 0:00:17]} d6 {[%emt 0:00:09]} 4. Nf3 {[%emt 0:00:05]} Bg4 {[%emt 0:00:13]} 5. Be2 {[%emt 0:00:11]} e5 {[%emt 0:00:48]} 6. d5 {[%emt 0:00:38]} Nd7 {[%emt 0:00:16]} 7. h3 {[%emt 0:00:26]} Bxf3 {[%emt 0:00:03]} 8. Bxf3 {[%emt 0:00:03]} Ne7 {[%emt 0:00:09]} 9. Nc3 {[%emt 0:00:38]} O-O {[%emt 0:00:11]} 10. Bg5 {[%emt 0:00:58]} f6 {[%emt 0:00:15]} 11. Be3 {[%emt 0:00:02]} f5 {[%emt 0:00:04]} 12. O-O {[%emt 0:00:56]} f4 {[%emt 0:00:19]} 13. Bd2 {[%emt 0:00:02]} g5 {[%emt 0:00:01]} 14. Bg4 {[%emt 0:00:16]} Nf6 {[%emt 0:00:25]} 15. Be6+ {[%emt 0:00:16]} Kh8 {[%emt 0:00:02]} 16. b4 {[%emt 0:01:13]} a6 {[%emt 0:00:12]} 17. c5 {[%emt 0:00:18]} Qe8 {[%emt 0:00:02]} 18. Rc1 {[%emt 0:00:11]} Qg6 {[%emt 0:00:17]} 19. cxd6 {[%emt 0:00:25]} cxd6 {[%emt 0:00:02]} 20. f3 {[%emt 0:00:45]} h5 {[%emt 0:00:37]} 21. Na4 {[%emt 0:00:11]} g4 {[%emt 0:00:25]} 22. hxg4 {[%emt 0:00:18]} hxg4 {[%emt 0:00:08]} 23. Kf2 {[%emt 0:01:47]} gxf3 {[%emt 0:02:40]} 24. Rh1+ {[%emt 0:00:33]} Bh6 {[%emt 0:04:35]} 25. Qxf3 {[%emt 0:00:25]} Nxe4+ {[%emt 0:00:10]} 26. Ke1 {[%emt 0:00:29]} Ng3 {[%emt 0:00:10]} 27. Rh3 {[%emt 0:01:21]} Rf6 {[%emt 0:00:53]} 28. Rc7 {[%emt 0:00:25]} Nef5 {[%emt 0:01:02]} 29. Qc3 {[%emt 0:01:32]} Raf8 {[%emt 0:01:08]} 30. Nb6 {[%emt 0:01:02]} Nd4 {[%emt 0:00:30]} 31. Nd7 {[%emt 0:00:52]} Qb1+ {[%emt 0:00:26]} 32. Qc1 {[%emt 0:00:31]} Qe4+ {[%emt 0:01:14]} 33. Be3 {[%emt 0:00:02]} Qxg2 {[%emt 0:00:17]} 34. Bf2 {[%emt 0:01:22]} Qf1+ {[%emt 0:00:31]} 35. Kd2 {[%emt 0:00:01]} Qe2+ {[%emt 0:00:10]} 36. Kc3 {[%emt 0:00:13]} Ne4# {[%emt 0:00:12]} 0-1